Cogmind - Beta 12 @@@ ROGUE MODE // 2023.05.04 @ 10:16:42 Player: MoonDog Result: Self-destructed Performance ------------- Evolutions (1) 500 Regions Visited (2) 400 Robots Destroyed (22) 110 Value Destroyed (241) 241 Prototype IDs (1) 20 Alien Tech Used (0) 0 Bonus (0) 0 TOTAL SCORE: 1271 Bonus ------- None Cogmind --------- Core Integrity 268/400 Matter 277/300 Energy 90/100 System Corruption 0% Temperature Cool (0) Movement Core (100) Ox1 Location -9/Materials Parts ------- > --- POWER (1) -------- (None) > --- PROPULSION (2) --- Flight Unit > --- UTILITY (4) ------ Visual Processing Unit Hacking Suite > --- WEAPON (2) ------- Light Assault Rifle Faulty Improved Assault Rifle > --- INVENTORY (5) ---- Wheel Wheel Medium Matter Pod (100) Improved Terrain Scanner Mining Laser Peak State ------------ > --- POWER ------------ Ion Engine > --- PROPULSION ------- Flight Unit Flight Unit > --- UTILITY ---------- Improved Terrain Scanner Hacking Suite > --- WEAPON ----------- Light Assault Rifle Light Assault Rifle > --- INVENTORY -------- Wheel Wheel Medium Matter Pod Mining Laser [Rating: 11] Favorites ----------- Power Ion Engine Engine Ion Engine Propulsion Wheel Wheel Wheel Flight Unit Flight Unit Utility Improved Terrain Scanner Device Improved Terrain Scanner Processor Visual Processing Unit Hackware Hacking Suite Weapon Mining Laser Energy Gun EM Pulse Gun Ballistic Gun Light Assault Rifle Special Weapon Mining Laser Slashing Weapon Mining Claw Build | -11 -10 -9 ------- Run | Jun Mat Mat Slots Evolved 2 | . . 2 Power . | . . . Propulsion . | . . . Utility 2 | . . 2 Weapon . | . . . Parts Attached 19 | 7 7 5 Power 1 | 1 . . Engine 1 | 1 . . Core . | . . . Reactor . | . . . Propulsion 5 | 2 2 1 Treads . | . . . Leg . | . . . Wheel 2 | 2 . . Hover . | . . . Flight 3 | . 2 1 Utility 5 | 2 1 2 Device 3 | 2 1 . Storage . | . . . Processor 1 | . . 1 Hackware 1 | . . 1 Protection . | . . . Artifact . | . . . Weapon 8 | 2 4 2 Energy Gun 2 | 1 1 . Energy Cannon . | . . . Ballistic Gun 4 | . 2 2 Ballistic Cannon . | . . . Launcher . | . . . Special Weapon 1 | 1 . . Impact Weapon . | . . . Slashing Weapon 1 | . 1 . Piercing Weapon . | . . . Special Melee Weapon . | . . . Unidentified Prototypes 1 | . . 1 Parts Lost 10 | . 5 5 Power 1 | . . 1 Propulsion 2 | . . 2 Utility 2 | . 2 . Weapon 5 | . 3 2 Highest Loss Streak 4 | . 3 4 To Critical Strikes . | . . . Average Slot Usage (%) 80 | . 86 65 Engine 11 | . 14 6 Wheel 16 | . 22 . Flight 8 | . 5 16 Device 14 | . 18 3 Processor 1 | . . 7 Hackware 3 | . . 11 Energy Gun 5 | . 7 . Ballistic Gun 7 | . 2 20 Special Weapon 7 | . 10 . Slashing Weapon 2 | . 3 . Naked Turns . | . . . Heaviest Build 10 | 10 10 8 Greatest Support 20 | 20 20 8 Greatest Overweight (x) 2 | 1 2 . Average Overweight (x) . | . . . Largest Inventory Capacity 5 | 5 5 5 Average Capacity 5 | 5 5 5 Most Carried 5 | 3 5 5 Average Carried 2 | . 3 4 Final Capacity 5 | 5 5 5 Final Carried 5 | 3 5 5 Class Distribution -------------------- 91% | Scavenger-Mutant 8% | Mutant Dominant Class ---------------- Scavenger-Mutant | -10/Materials Scavenger-Mutant | -9/Materials Resources | -11 -10 -9 ----------- Run | Jun Mat Mat Matter Collected 477 | 353 74 50 Remotely . | . . . Salvage Created 584 | 182 271 131 Parts 51 | 21 20 10 Haulers Intercepted 2 | . 2 . Recyclers Shooed 1 | 1 . . Parts Field Recycled . | . . . Retrieved Matter . | . . . Parts Self-Destructed . | . . . Prevented . | . . . Kills | -11 -10 -9 ------- Run | Jun Mat Mat Combat Hostiles Destroyed 10 | . 5 5 Guns 10 | . 5 5 Classes Destroyed 8 | 3 4 1 Worker 4 | 2 1 1 Tunneler 4 | 4 . . Hauler 2 | . 2 . Recycler 1 | 1 . . Operator 1 | . 1 . Swarmer 7 | . 3 4 Grunt 2 | . 2 . Sentry 1 | . . 1 Best Kill Streak 6 | 4 3 6 Combat Bots Only 5 | . 2 5 Max Kills in Single Turn 1 | 1 1 1 Gunslinging . | . . . Exploded . | . . . Melee . | . . . Uniques/NPCs Destroyed . | . . . Combat | -11 -10 -9 -------- Run | Jun Mat Mat Damage Taken 926 | . 550 376 Core 330 | . 198 132 Absorbed by Shields . | . . . Core Remaining (%) 60 | 100 20 . Volleys Fired 89 | 25 42 22 Largest 2 | 2 2 2 Hottest 140 | 140 140 40 Shots Fired 108 | 26 43 39 Gun 104 | 25 40 39 Cannon . | . . . Launcher . | . . . Special 4 | 1 3 . Kinetic 54 | . 15 39 Thermal 4 | 1 3 . Explosive . | . . . Electromagnetic 50 | 25 25 . Robot Hit Streak 16 | 10 3 16 Robot Miss Streak 7 | 1 7 1 Penetration Max . | . . . Secondary Targets . | . . . Shots Hit Robots 65 | 21 15 29 Core Hits 30 | 8 12 10 Critical Kills . | . . . Critical Parts Destroyed . | . . . Critical Strikes 1 | . 1 . Corrupt 1 | . 1 . Melee Attacks 11 | . 11 . Impact . | . . . Slashing 11 | . 11 . Piercing . | . . . Sneak Attacks . | . . . Combat Hostiles . | . . . Follow-up Attacks . | . . . Damage Inflicted 768 | 339 200 229 Guns 698 | 269 200 229 Cannons . | . . . Explosions 46 | 46 . . Melee . | . . . Ramming . | . . . Kinetic 278 | . 49 229 Thermal 70 | 70 . . Explosive . | . . . Electromagnetic 420 | 269 151 . Impact . | . . . Slashing . | . . . Piercing . | . . . Highest Corruption 9 | . 9 . Average Corruption 9 | . 9 . Corruption Purged . | . . . Corruption Blocked . | . . . Effects 9 | . 9 . Message Errors 4 | . 4 . Matter Fused 1 | . 1 . Heat Flow Errors 2 | . 2 . Energy Discharges 2 | . 2 . Overload Shots . | . . . Overflow Damage . | . . . Projectiles . | . . . Explosions . | . . . Melee . | . . . Knockbacks . | . . . Impact . | . . . Kinetic . | . . . Secondary . | . . . Self-Inflicted Damage . | . . . Shots . | . . . Rammed . | . . . Targets Rammed . | . . . Kicked . | . . . Crushed . | . . . Highest Temperature 180 | 60 180 3 Average Temperature 57 | 40 65 1 Received Heat Transfer 141 | . 24 117 Siege Activations . | . . . Robots Corrupted . | . . . Combat Hostiles . | . . . Parts Fried 1 | 1 . . Impact Corruptions . | . . . Robots Melted . | . . . Combat Hostiles . | . . . Parts Melted . | . . . Heat Transferred 100 | 100 . . Parts Sabotaged . | . . . Parts Stolen . | . . . Parts Stripped . | . . . Power Chain Reactions 1 | 1 . . Missiles Intercepted . | . . . Alert | -11 -10 -9 ------- Run | Jun Mat Mat Peak Influence 210 | 35 210 200 Initial 88 | . 22 88 Average 60 | 17 49 142 Maximum Alert Level 1 | . 1 1 Low Security (%) 94 | 100 96 80 Level 1 5 | . 3 19 Level 2 . | . . . Level 3 . | . . . Level 4 . | . . . Level 5 . | . . . High Security . | . . . Max Security . | . . . Squads Dispatched 1 | . 1 . Investigation . | . . . Extermination . | . . . Reinforcement 1 | . 1 . Assault . | . . . Garrison . | . . . Intercept . | . . . Searches Triggered . | . . . Construction Impeded . | . . . Haulers Reinforced . | . . . Active Scanning Responses . | . . . Cargo Convoy Interrupts . | . . . Stealth | -11 -10 -9 --------- Run | Jun Mat Mat Distress Signals . | . . . Communications Jammed . | . . . Distress Signals . | . . . Times Spotted 25 | . 15 10 Peak Tracking Total 5 | . 3 5 Tactical Retreats 1 | . 1 . Traps | -11 -10 -9 ------- Run | Jun Mat Mat Traps Triggered . | . . . Indirectly . | . . . Trap Hack Attempts . | . . . Triggered . | . . . Disarmed . | . . . Reprogrammed . | . . . Reused . | . . . Traps Extracted . | . . . Installed . | . . . Triggered . | . . . Machines | -11 -10 -9 ---------- Run | Jun Mat Mat Machines Disabled . | . . . Max in Single Turn . | . . . Machines Repaired . | . . . Machines Sabotaged . | . . . Overloaded Fab Kills . | . . . Hacking | -11 -10 -9 --------- Run | Jun Mat Mat Machines Accessed 6 | . 3 3 Terminals 6 | . 3 3 Fabricators . | . . . Repair Stations . | . . . Recycling Units . | . . . Scanalyzers . | . . . Garrison Access . | . . . Total Hacks 28 | . 14 14 Successful 13 | . 4 9 Failed 15 | . 10 5 Catastrophic . | . . . Database Lockouts . | . . . Manual 28 | . 14 14 Terminals 28 | . 14 14 Fabricators . | . . . Repair Stations . | . . . Recycling Units . | . . . Scanalyzers . | . . . Garrison Access . | . . . Terminal Hacks 3 | . 1 2 Record 1 | . . 1 Terminal Index 2 | . 1 1 Fabricator Hacks . | . . . Repair Station Hacks . | . . . Recycling Unit Hacks . | . . . Scanalyzer . | . . . Garrison Access Hacks . | . . . Unauthorized Hacks 10 | . 3 7 Terminals 10 | . 3 7 Track 3 | . 1 2 Botnet 4 | . 1 3 Detonate 1 | . . 1 Operators 2 | . 1 1 Fabricators . | . . . Repair Stations . | . . . Recycling Units . | . . . Scanalyzers . | . . . Garrison Access . | . . . Data Cores Recovered . | . . . Used . | . . . Hacking Detections 6 | . 3 3 Full Trace Events 1 | . 1 . Feedback Events . | . . . Feedback Blocked . | . . . Robot Schematics Acquired . | . . . Robots Built . | . . . Authchips . | . . . Time . | . . . Total Robot Build Rating . | . . . Part Schematics Acquired . | . . . Parts Built . | . . . Authchips . | . . . Time . | . . . Total Part Build Rating . | . . . Parts Repaired . | . . . Time . | . . . Parts Recycled . | . . . Recycled Matter . | . . . Retrieved Matter . | . . . Retrieved Components . | . . . Parts Scanalyzed . | . . . Part Schematics Acquired . | . . . Parts Damaged . | . . . Bothacking | -11 -10 -9 ------------ Run | Jun Mat Mat Used RIF Installer . | . . . Robots Hacked . | . . . Non-combat . | . . . Combat . | . . . Robot Hacks Applied . | . . . Relay Couplers Released . | . . . Fabnet Peak Effective % . | . . . Robots Rewired . | . . . Allies Hacked . | . . . Hacks Repelled . | . . . Allies | -11 -10 -9 -------- Run | Jun Mat Mat Total Allies . | . . . Largest Group . | . . . Highest-Rated Group . | . . . Highest-Rated Ally . | . . . Total Orders . | . . . Ally Attacks . | . . . Total Damage . | . . . Kills . | . . . Allies Corrupted . | . . . Allies Melted . | . . . Intel | -11 -10 -9 ------- Run | Jun Mat Mat Robot Analysis Total . | . . . Derelict Logs Recovered . | . . . Drone Launches . | . . . Drone Recoveries . | . . . Exploration | -11 -10 -9 ------------- Run | Jun Mat Mat Turns Passed 683 | 172 371 140 Spaces Moved 651 | 111 343 197 Core 33 | 29 2 2 Treads . | . . . Legs . | . . . Wheels 332 | 82 250 . Hover . | . . . Flight 286 | . 91 195 Fastest Speed 37 | 50 37 37 Average Speed 60 | 74 69 37 Slowest Speed 150 | 100 150 50 Overloaded Moves . | . . . Propulsion Burnouts . | . . . Robots Hopped 6 | . . 6 Cave-ins Triggered 1 | . 1 . Exploration Rate (%) 21 | 5 42 16 Regions Visited 2 Branch Regions . Pre-discovered Areas . | . . . Known Exits Taken . | . . . Unknown Exits Taken 2 | 1 1 . Scrap Searched . | . . . Spaces Dug 9 | . 9 . Terrain Destroyed 12 | 3 9 . Melee 7 | . 7 . Projectile 2 | . 2 . AOE 3 | 3 . . Terrain Rammed . | . . . Walls Destroyed . | . . . Machines Disabled . | . . . Actions | -11 -10 -9 --------- Run | Jun Mat Mat Total 798 | 168 407 223 Wait 28 | 23 1 4 Move 640 | 110 342 188 Hop 3 | . . 3 Pick Up 4 | 3 1 . Fast Attach 16 | 7 5 4 Attach 3 | . 2 1 Detach 4 | . 3 1 Swap . | . . . Drop . | . . . Fire 89 | 25 42 22 Melee 11 | . 11 . Ram . | . . . Kick . | . . . Crush . | . . . Escape Stasis . | . . . Rewire . | . . . Trap . | . . . Miscellaneous . | . . . Route ------- -11/Junkyard -10/Materials (discovered 3 exits: *Mat x2 / [*Min]) -9/Materials History --------- Turn | Location | Event 6 | -11/Junkyard | Discovered new exit (range 15) 173 | -11/Junkyard | Entered Materials 300 | -10/Materials | Crushed by falling debris 331 | -10/Materials | Lost 3 parts (2u1w) 379 | -10/Materials | Discovered new exit (range 5) 485 | -10/Materials | Discovered new exit (range 8) 496 | -10/Materials | Discovered new exit (range 11) 511 | -10/Materials | Core integrity fell below 50% 544 | -10/Materials | Entered another Materials area 544 | -9/Materials | Evolved 2 slots: Utility x2 616 | -9/Materials | Build established: Scavenger-Mutant 668 | -9/Materials | Lost 4 parts (1p2n1w) 684 | -9/Materials | Self-destructed Last Messages --------------- 00650_ Acquired 2 matter. 00653_ Acquired Flight Unit. 00659_ Critical hit (Burn: +37). 00665_ R-06 Scavenger collects Wheel. 00672_ Connecting with Terminal... >>Trojan(Botnet) Trojan loaded successfully. Testing... Terminal linked with 2 systems. Awaiting botnet instructions. >>Trojan(Track) Trojan loaded successfully. Testing... Tracking enabled and active. 00676_ Lgt. Assault Rifle destroyed. 00680_ M-13 Machinist repairs Y-45 Defender. 00682_ Acquired Prototype Ballistic Gun. 00682_ Identified Imp. Assault Rifle. 00682_ Flight Unit broken. 00682_ Malfunction: Power surge. Map ----- +----------------------------------------------------+ | ?????????????????????????????????????????????????? | | ?????????????????????????????????????????????????? | | ?????????????????????????????????????????????????? | | ?????????????????????????????????????????????????? | | ?????????????????????????????????????????????????? | | ?????????????????????????????????????????????????? | | ?????????????????????????????????????????????????? | | ?????????????????????????????????????????????????? | | ?????????????????????????????????????????????????? | | ?????????????????????????????????????????????????? | | ???????????????????? ??????????????????????????? | | ??????????????????? ??????????????????????????? | | ??????????????????? ??????????????????????????? | | ??????????????????? ??????????????????????????? | | ???????????????????# ??????????????????????????? | | ???????????????????# ??????????????????????????? | | ???????????????????# ??????????????????????????? | | ???????????????????# ??????????????????????????? | | ???????????????????# #?????????????????????????? | | ???????????????????# #?????????????????????????? | | ???????????????????# #?????????????????????????? | | ???????????????????# #?????????????????????????? | | ???????????????????# ####+##+##????????????????? | | ???????????????????# # #????????????????? | | ???????????????????# # a #????????????????? | | ???????????????????# # @*g +????????????????? | | ???????????????????# # |*g #????????????????? | | ???????????????????# + #????????????????? | | ???????????????????# # """"" #????????????????? | | ???????????????????### # """"" #????????????????? | | ?????????????????????# # """"" [#????????????????? | | ?????????????????????# # #????????????????? | | ?????????????????????# ##########????????????????? | | ?????????????????????# #?????????????????????????? | | ?????????????????o???#k#?????????????????????????? | | ?????????????????????# #?????????????????????????? | | ?????????????????????# ########??????????????????? | | ?????????????????????#g# T #??????????????????? | | ?????????????????????#g# #??????????????????? | | ?????????????????????# # [[ ##?????????????????? | | ??????????????###????# + [[ ! #?????????????????? | | ??????????????# ??#Y# ##?????????????????? | | ??????????????# """ # # = #??????????????????? | | ??????????????# """ / ##########????????????????? | | ??????????????# """ # # #????????????????? | | ??????????????# # # * #????????????????? | | ??????????????# ?? ?# # "T"[[* #????????????????? | | ??????????????#???##?# # """%%* #????????????????? | | ?????????????????????# #####+####????????????????? | | ?????????????????????# =! %#???????????????????? | +----------------------------------------------------+ Best States ------------- Heat Dissipation 28 Energy Generation 10 Energy Capacity 250 Matter Stores 300 Matter Capacity 300 Sight Range 18 Terrain Scan Range 16 Terrain Scan Density 10 Evasion (%) 62 Offensive Hacking 10 Item Schematics ----------------- None Robot Schematics ------------------ None Fabricated ------------ Nothing Alien Tech Used ----------------- None Achievements -------------- None Challenges ------------ None Game ------ Seed HoverMobileKatana Manual? 0 Play Time 00:12:37 Cumulative 122.5 hours Start 2023.05.04 @ 09:06:13 End 2023.05.04 @ 10:16:42 Sessions 1 Manual Loads 0 Difficulty Rogue Special Mode None Game No. 107 Rogue 107 Adventurer 0 Explorer 0 Win Type - Total 1 Types 1/0/0/0/0/0/0/0/0 Lore% 38 Gallery% 54 Achievement% 46 Wizard Run 0 Options --------- ASCII 0 Keyboard 0 Movement Numpad Keybinds 0 Fullscreen 1 Font 18/SmallcapsGlow Map View 76x50 Tactical HUD 1 Map Filters NONE Filters NONE Steam 1 RUN: e5689f40-d248-4678-af76-d2d510802ea5